Workbook

Sheet DOMESTIC DEMAND
A1: RESIDENTIAL METER SIZING WORKSHEET ONLY
A2: (REFERENCE UPC 2012 APPENDIX A, TABLE 2.1 AND APPENDIX C, TABLE C 4.1, WSFU, Flush Tanks)
A3: Project Name:
A4: LVVWD Project Number:
A5: Calculations herein are for floor plan/model:
A8: GROUPED FIXTURES
A9: BATHROOM GROUPS1 AND 2 | C9: FIXTURE UNITS COLD | E9: QUANTITIES | G9: TOTAL
A10: CLICK HERE TO SELECT A BATHROOM GROUP: | C10: =IF(A10="CLICK HERE TO SELECT A BATHROOM GROUP:",0,IF(A10="Half Bath or Powder Room",3.5,IF(A10="1 Bathroom Group",5,IF(A10="1-1/2 Bathrooms",6,IF(A10="2 Bathrooms",7,IF(A10="2-1/2 Bathrooms",8,IF(A10="3 Bathrooms",9))))))) -> 0 | E10: 1 | G10: =C10*E10 -> 0
A11: AND Each Additional 1/2 Bath | C11: 0.5 | G11: 0
A12: AND Each Additional Bathroom Group | C12: 1 | G12: 0
A13: AND Each Bidet | C13: 1 | G13: 0
A14: AND Each Shower (if Bath has separate tub & shower) | C14: 2 | G14: 0
A15: Kitchen Group (Sink and Dishwasher) 3 | C15: 2 | G15: 0
A16: Laundry Group (Sink and Clothes Washer) 3 | C16: 5 | G16: 0
A18: ADDITIONAL FIXTURES NOT GROUPED
A19: Wet Bar/Bar Sink | C19: 1 | G19: =C19*E19 -> 0
A20: Kitchen Sink | C20: 1.5 | G20: =C20*E20 -> 0
A21: Laundry Sink | C21: 1.5 | G21: 0
A22: Service/Mop Sink | C22: 1.5 | G22: 0
A23: Diswasher | C23: 1.5 | G23: 0
A24: Urinal | C24: 2 | G24: 0
A25: Clothes Washer | C25: 4 | G25: 0
A26: Hose Bibb | C26: 2.5 | G26: =C26*E26 -> 0
A27: Each Additional Hose Bibb | C27: 1 | G27: =C27*E27 -> 0
A29: TOTAL FIXTURE UNITS | G29: =SUM(G10:G16,G19:G27) -> 0
A31: DOMESTIC DEMAND (FIXTURE UNITS TO GPM CONVERSION) | G31: =SUM(VALUES2!C2:C379) -> 0
A33: METER SIZE4 | G33: =IF(G31<21,"3/4 inch",IF(G31<=35,"1 inch", IF(G31<=70,"1.5 inch",IF(G31<=112,"2 inch")))) -> 3/4 inch
A36: NOTES:
A37: 1. Bathroom Groups having 1.6 GPF Gravity-Tank Water Closets. One bathroom group, for the purposes of this worksheet, consists of one water closet, up to two lavatories, and either one bathtub or one shower.
A38: 2. A half-bath or powder room, for the pursoses of this worksheet, consists of one water closet and one lavatory.
A39: 3. The District will only account for one Kitchen and Laundry Group for a Single Family. Additional Kichenettes and Stackable washers will be accounted for separately as non-grouped fixtures.
A40: 4. LVVWD requires a minimum 3/4" meter for Domestic Services. This tool calculates the domestic demand at 70% of the maximum flow for each meter capacity, allowing the rest for irrigation.
A41: 5. If Residential Fire Sprinklers are required to be served by the domestic meter, the maximum allowable flow of the meter will be allowed for a fire event only.

Sheet VALUES2 (hidden)
A1: FLOW (GPM) | B1: FIXTURE UNITS (Flush Tank)
A2: 0 | B2: 0 | C2: =IF(+'DOMESTIC DEMAND'!$G$29=B2,A2,) -> 0
A3: 1 | B3: 0.5 | C3: =IF(+'DOMESTIC DEMAND'!$G$29=B3,A3,) -> 0 | H3: CLICK HERE TO SELECT A BATHROOM GROUP: | I3: 0
A4: 2 | B4: 1 | C4: =IF(+'DOMESTIC DEMAND'!$G$29=B4,A4,) -> 0 | H4: Half Bath or Powder Room | I4: 3.5
A5: =A4+(1/4) -> 2.25 | B5: 1.5 | C5: =IF(+'DOMESTIC DEMAND'!$G$29=B5,A5,) -> 0 | H5: 1 Bathroom Group | I5: 5
A6: =A5+(1/4) -> 2.5 | B6: 2 | C6: =IF(+'DOMESTIC DEMAND'!$G$29=B6,A6,) -> 0 | H6: 1-1/2 Bathrooms | I6: 6
A7: =A6+(1/4) -> 2.75 | B7: 2.5 | C7: =IF(+'DOMESTIC DEMAND'!$G$29=B7,A7,) -> 0 | H7: 2 Bathrooms | I7: 7
A8: 3 | B8: 3 | C8: =IF(+'DOMESTIC DEMAND'!$G$29=B8,A8,) -> 0 | H8: 2-1/2 Bathrooms | I8: 8
A9: =A8+(1/2) -> 3.5 | B9: 3.5 | C9: =IF(+'DOMESTIC DEMAND'!$G$29=B9,A9,) -> 0 | H9: 3 Bathrooms | I9: 9
A10: 4 | B10: 4 | C10: =IF(+'DOMESTIC DEMAND'!$G$29=B10,A10,) -> 0
A11: =A10+(1/4) -> 4.25 | B11: 4.5 | C11: =IF(+'DOMESTIC DEMAND'!$G$29=B11,A11,) -> 0
A12: =A11+(1/4) -> 4.5 | B12: 5 | C12: =IF(+'DOMESTIC DEMAND'!$G$29=B12,A12,) -> 0
A13: =A12+(1/4) -> 4.75 | B13: 5.5 | C13: =IF(+'DOMESTIC DEMAND'!$G$29=B13,A13,) -> 0
A14: 5 | B14: 6 | C14: =IF(+'DOMESTIC DEMAND'!$G$29=B14,A14,) -> 0
A15: =A14+(1/2) -> 5.5 | B15: 6.5 | C15: =IF(+'DOMESTIC DEMAND'!$G$29=B15,A15,) -> 0
A16: 6 | B16: 7 | C16: =IF(+'DOMESTIC DEMAND'!$G$29=B16,A16,) -> 0
A17: =A16+(1/2) -> 6.5 | B17: 7.5 | C17: =IF(+'DOMESTIC DEMAND'!$G$29=B17,A17,) -> 0
A18: 7 | B18: 8 | C18: =IF(+'DOMESTIC DEMAND'!$G$29=B18,A18,) -> 0
A19: =A18+(1/4) -> 7.25 | B19: 8.5 | C19: =IF(+'DOMESTIC DEMAND'!$G$29=B19,A19,) -> 0
A20: =A19+(1/4) -> 7.5 | B20: 9 | C20: =IF(+'DOMESTIC DEMAND'!$G$29=B20,A20,) -> 0
A21: =A20+(1/4) -> 7.75 | B21: 9.5 | C21: =IF(+'DOMESTIC DEMAND'!$G$29=B21,A21,) -> 0
A22: 8 | B22: 10 | C22: =IF(+'DOMESTIC DEMAND'!$G$29=B22,A22,) -> 0
A23: =A22+(1/4) -> 8.25 | B23: 10.5 | C23: =IF(+'DOMESTIC DEMAND'!$G$29=B23,A23,) -> 0
A24: =A23+(1/4) -> 8.5 | B24: 11 | C24: =IF(+'DOMESTIC DEMAND'!$G$29=B24,A24,) -> 0
A25: =A24+(1/4) -> 8.75 | B25: 11.5 | C25: =IF(+'DOMESTIC DEMAND'!$G$29=B25,A25,) -> 0
A26: 9 | B26: 12 | C26: =IF(+'DOMESTIC DEMAND'!$G$29=B26,A26,) -> 0
A27: =A26+(1/2) -> 9.5 | B27: 12.5 | C27: =IF(+'DOMESTIC DEMAND'!$G$29=B27,A27,) -> 0
A28: 10 | B28: 13 | C28: =IF(+'DOMESTIC DEMAND'!$G$29=B28,A28,) -> 0
A29: =A28+(1/4) -> 10.25 | B29: 13.5 | C29: =IF(+'DOMESTIC DEMAND'!$G$29=B29,A29,) -> 0
A30: =A29+(1/4) -> 10.5 | B30: 14 | C30: =IF(+'DOMESTIC DEMAND'!$G$29=B30,A30,) -> 0
A31: =A30+(1/4) -> 10.75 | B31: 14.5 | C31: =IF(+'DOMESTIC DEMAND'!$G$29=B31,A31,) -> 0
A32: 11 | B32: 15 | C32: =IF(+'DOMESTIC DEMAND'!$G$29=B32,A32,) -> 0
A33: =A32+(1/2) -> 11.5 | B33: 15.5 | C33: =IF(+'DOMESTIC DEMAND'!$G$29=B33,A33,) -> 0
A34: 12 | B34: 16 | C34: =IF(+'DOMESTIC DEMAND'!$G$29=B34,A34,) -> 0
A35: =A34+(1/4) -> 12.25 | B35: 16.5 | C35: =IF(+'DOMESTIC DEMAND'!$G$29=B35,A35,) -> 0
A36: =A35+(1/4) -> 12.5 | B36: 17 | C36: =IF(+'DOMESTIC DEMAND'!$G$29=B36,A36,) -> 0
A37: =A36+(1/4) -> 12.75 | B37: 17.5 | C37: =IF(+'DOMESTIC DEMAND'!$G$29=B37,A37,) -> 0
A38: 13 | B38: 18 | C38: =IF(+'DOMESTIC DEMAND'!$G$29=B38,A38,) -> 0
A39: =A38+(1/4) -> 13.25 | B39: 18.5 | C39: =IF(+'DOMESTIC DEMAND'!$G$29=B39,A39,) -> 0
A40: =A39+(1/4) -> 13.5 | B40: 19 | C40: =IF(+'DOMESTIC DEMAND'!$G$29=B40,A40,) -> 0
A41: =A40+(1/4) -> 13.75 | B41: 19.5 | C41: =IF(+'DOMESTIC DEMAND'!$G$29=B41,A41,) -> 0
A42: 14 | B42: 20 | C42: =IF(+'DOMESTIC DEMAND'!$G$29=B42,A42,) -> 0
A43: =A42+(1/2) -> 14.5 | B43: 20.5 | C43: =IF(+'DOMESTIC DEMAND'!$G$29=B43,A43,) -> 0
A44: 15 | B44: 21 | C44: =IF(+'DOMESTIC DEMAND'!$G$29=B44,A44,) -> 0
A45: =A44+(1/4) -> 15.25 | B45: 21.5 | C45: =IF(+'DOMESTIC DEMAND'!$G$29=B45,A45,) -> 0
A46: =A45+(1/4) -> 15.5 | B46: 22 | C46: =IF(+'DOMESTIC DEMAND'!$G$29=B46,A46,) -> 0
A47: =A46+(1/4) -> 15.75 | B47: 22.5 | C47: =IF(+'DOMESTIC DEMAND'!$G$29=B47,A47,) -> 0
A48: 16 | B48: 23 | C48: =IF(+'DOMESTIC DEMAND'!$G$29=B48,A48,) -> 0
A49: =A48+(1/2) -> 16.5 | B49: 23.5 | C49: =IF(+'DOMESTIC DEMAND'!$G$29=B49,A49,) -> 0
A50: 17 | B50: 24 | C50: =IF(+'DOMESTIC DEMAND'!$G$29=B50,A50,) -> 0
A51: =A50+(1/4) -> 17.25 | B51: 24.5 | C51: =IF(+'DOMESTIC DEMAND'!$G$29=B51,A51,) -> 0
A52: =A51+(1/4) -> 17.5 | B52: 25 | C52: =IF(+'DOMESTIC DEMAND'!$G$29=B52,A52,) -> 0
A53: =A52+(1/4) -> 17.75 | B53: 25.5 | C53: =IF(+'DOMESTIC DEMAND'!$G$29=B53,A53,) -> 0
A54: 18 | B54: 26 | C54: =IF(+'DOMESTIC DEMAND'!$G$29=B54,A54,) -> 0
A55: =A54+(1/4) -> 18.25 | B55: 26.5 | C55: =IF(+'DOMESTIC DEMAND'!$G$29=B55,A55,) -> 0
A56: =A55+(1/4) -> 18.5 | B56: 27 | C56: =IF(+'DOMESTIC DEMAND'!$G$29=B56,A56,) -> 0
A57: =A56+(1/4) -> 18.75 | B57: 27.5 | C57: =IF(+'DOMESTIC DEMAND'!$G$29=B57,A57,) -> 0
A58: 19 | B58: 28 | C58: =IF(+'DOMESTIC DEMAND'!$G$29=B58,A58,) -> 0
A59: =A58+(1/4) -> 19.25 | B59: 28.5 | C59: =IF(+'DOMESTIC DEMAND'!$G$29=B59,A59,) -> 0
A60: =A59+(1/4) -> 19.5 | B60: 29 | C60: =IF(+'DOMESTIC DEMAND'!$G$29=B60,A60,) -> 0
A61: =A60+(1/4) -> 19.75 | B61: 29.5 | C61: =IF(+'DOMESTIC DEMAND'!$G$29=B61,A61,) -> 0
A62: 20 | B62: 30 | C62: =IF(+'DOMESTIC DEMAND'!$G$29=B62,A62,) -> 0
A63: =A62+(1/4) -> 20.25 | B63: 30.5 | C63: =IF(+'DOMESTIC DEMAND'!$G$29=B63,A63,) -> 0
A64: =A63+(1/4) -> 20.5 | B64: 31 | C64: =IF(+'DOMESTIC DEMAND'!$G$29=B64,A64,) -> 0
A65: =A64+(1/4) -> 20.75 | B65: 31.5 | C65: =IF(+'DOMESTIC DEMAND'!$G$29=B65,A65,) -> 0
A66: 21 | B66: 32 | C66: =IF(+'DOMESTIC DEMAND'!$G$29=B66,A66,) -> 0
A67: =A66+(1/4) -> 21.25 | B67: 32.5 | C67: =IF(+'DOMESTIC DEMAND'!$G$29=B67,A67,) -> 0
A68: =A67+(1/4) -> 21.5 | B68: 33 | C68: =IF(+'DOMESTIC DEMAND'!$G$29=B68,A68,) -> 0
A69: =A68+(1/4) -> 21.75 | B69: 33.5 | C69: =IF(+'DOMESTIC DEMAND'!$G$29=B69,A69,) -> 0
A70: 22 | B70: 34 | C70: =IF(+'DOMESTIC DEMAND'!$G$29=B70,A70,) -> 0
A71: =A70+(1/4) -> 22.25 | B71: 34.5 | C71: =IF(+'DOMESTIC DEMAND'!$G$29=B71,A71,) -> 0
A72: =A71+(1/4) -> 22.5 | B72: 35 | C72: =IF(+'DOMESTIC DEMAND'!$G$29=B72,A72,) -> 0
A73: =A72+(1/4) -> 22.75 | B73: 35.5 | C73: =IF(+'DOMESTIC DEMAND'!$G$29=B73,A73,) -> 0
A74: 23 | B74: 36 | C74: =IF(+'DOMESTIC DEMAND'!$G$29=B74,A74,) -> 0
A75: =A74+(1/6) -> 23.16666667 | B75: 36.5 | C75: =IF(+'DOMESTIC DEMAND'!$G$29=B75,A75,) -> 0
A76: =A75+(1/6) -> 23.33333333 | B76: 37 | C76: =IF(+'DOMESTIC DEMAND'!$G$29=B76,A76,) -> 0
A77: =A76+(1/6) -> 23.5 | B77: 37.5 | C77: =IF(+'DOMESTIC DEMAND'!$G$29=B77,A77,) -> 0
A78: =A77+(1/6) -> 23.66666667 | B78: 38 | C78: =IF(+'DOMESTIC DEMAND'!$G$29=B78,A78,) -> 0
A79: =A78+(1/6) -> 23.83333333 | B79: 38.5 | C79: =IF(+'DOMESTIC DEMAND'!$G$29=B79,A79,) -> 0
A80: 24 | B80: 39 | C80: =IF(+'DOMESTIC DEMAND'!$G$29=B80,A80,) -> 0
A81: =A80+(1/6) -> 24.16666667 | B81: 39.5 | C81: =IF(+'DOMESTIC DEMAND'!$G$29=B81,A81,) -> 0
A82: =A81+(1/6) -> 24.33333333 | B82: 40 | C82: =IF(+'DOMESTIC DEMAND'!$G$29=B82,A82,) -> 0
A83: =A82+(1/6) -> 24.5 | B83: 40.5 | C83: =IF(+'DOMESTIC DEMAND'!$G$29=B83,A83,) -> 0
A84: =A83+(1/6) -> 24.66666667 | B84: 41 | C84: =IF(+'DOMESTIC DEMAND'!$G$29=B84,A84,) -> 0
A85: =A84+(1/6) -> 24.83333333 | B85: 41.5 | C85: =IF(+'DOMESTIC DEMAND'!$G$29=B85,A85,) -> 0
A86: 25 | B86: 42 | C86: =IF(+'DOMESTIC DEMAND'!$G$29=B86,A86,) -> 0
A87: =A86+(1/4) -> 25.25 | B87: 42.5 | C87: =IF(+'DOMESTIC DEMAND'!$G$29=B87,A87,) -> 0
A88: =A87+(1/4) -> 25.5 | B88: 43 | C88: =IF(+'DOMESTIC DEMAND'!$G$29=B88,A88,) -> 0
A89: =A88+(1/4) -> 25.75 | B89: 43.5 | C89: =IF(+'DOMESTIC DEMAND'!$G$29=B89,A89,) -> 0
A90: 26 | B90: 44 | C90: =IF(+'DOMESTIC DEMAND'!$G$29=B90,A90,) -> 0
A91: =A90+(1/4) -> 26.25 | B91: 44.5 | C91: =IF(+'DOMESTIC DEMAND'!$G$29=B91,A91,) -> 0
A92: =A91+(1/4) -> 26.5 | B92: 45 | C92: =IF(+'DOMESTIC DEMAND'!$G$29=B92,A92,) -> 0
A93: =A92+(1/4) -> 26.75 | B93: 45.5 | C93: =IF(+'DOMESTIC DEMAND'!$G$29=B93,A93,) -> 0
A94: 27 | B94: 46 | C94: =IF(+'DOMESTIC DEMAND'!$G$29=B94,A94,) -> 0
A95: =A94+(1/6) -> 27.16666667 | B95: 46.5 | C95: =IF(+'DOMESTIC DEMAND'!$G$29=B95,A95,) -> 0
A96: =A95+(1/6) -> 27.33333333 | B96: 47 | C96: =IF(+'DOMESTIC DEMAND'!$G$29=B96,A96,) -> 0
A97: =A96+(1/6) -> 27.5 | B97: 47.5 | C97: =IF(+'DOMESTIC DEMAND'!$G$29=B97,A97,) -> 0
A98: =A97+(1/6) -> 27.66666667 | B98: 48 | C98: =IF(+'DOMESTIC DEMAND'!$G$29=B98,A98,) -> 0
A99: =A98+(1/6) -> 27.83333333 | B99: 48.5 | C99: =IF(+'DOMESTIC DEMAND'!$G$29=B99,A99,) -> 0
A100: 28 | B100: 49 | C100: =IF(+'DOMESTIC DEMAND'!$G$29=B100,A100,) -> 0
A101: =A100+(1/4) -> 28.25 | B101: 49.5 | C101: =IF(+'DOMESTIC DEMAND'!$G$29=B101,A101,) -> 0
A102: =A101+(1/4) -> 28.5 | B102: 50 | C102: =IF(+'DOMESTIC DEMAND'!$G$29=B102,A102,) -> 0
A103: =A102+(1/4) -> 28.75 | B103: 50.5 | C103: =IF(+'DOMESTIC DEMAND'!$G$29=B103,A103,) -> 0
A104: 29 | B104: 51 | C104: =IF(+'DOMESTIC DEMAND'!$G$29=B104,A104,) -> 0
A105: =A104+(1/6) -> 29.16666667 | B105: 51.5 | C105: =IF(+'DOMESTIC DEMAND'!$G$29=B105,A105,) -> 0
A106: 29.33333333 | B106: 52 | C106: =IF(+'DOMESTIC DEMAND'!$G$29=B106,A106,) -> 0
A107: 29.5 | B107: 52.5 | C107: =IF(+'DOMESTIC DEMAND'!$G$29=B107,A107,) -> 0
A108: 29.66666667 | B108: 53 | C108: =IF(+'DOMESTIC DEMAND'!$G$29=B108,A108,) -> 0
A109: 29.83333333 | B109: 53.5 | C109: =IF(+'DOMESTIC DEMAND'!$G$29=B109,A109,) -> 0
A110: 30 | B110: 54 | C110: =IF(+'DOMESTIC DEMAND'!$G$29=B110,A110,) -> 0
A111: =A110+(1/4) -> 30.25 | B111: 54.5 | C111: =IF(+'DOMESTIC DEMAND'!$G$29=B111,A111,) -> 0
A112: =A111+(1/4) -> 30.5 | B112: 55 | C112: =IF(+'DOMESTIC DEMAND'!$G$29=B112,A112,) -> 0
A113: =A112+(1/4) -> 30.75 | B113: 55.5 | C113: =IF(+'DOMESTIC DEMAND'!$G$29=B113,A113,) -> 0
A114: 31 | B114: 56 | C114: =IF(+'DOMESTIC DEMAND'!$G$29=B114,A114,) -> 0
A115: =A114+(1/4) -> 31.25 | B115: 56.5 | C115: =IF(+'DOMESTIC DEMAND'!$G$29=B115,A115,) -> 0
A116: =A115+(1/4) -> 31.5 | B116: 57 | C116: =IF(+'DOMESTIC DEMAND'!$G$29=B116,A116,) -> 0
A117: =A116+(1/4) -> 31.75 | B117: 57.5 | C117: =IF(+'DOMESTIC DEMAND'!$G$29=B117,A117,) -> 0
A118: 32 | B118: 58 | C118: =IF(+'DOMESTIC DEMAND'!$G$29=B118,A118,) -> 0
A119: =A118+(1/4) -> 32.25 | B119: 58.5 | C119: =IF(+'DOMESTIC DEMAND'!$G$29=B119,A119,) -> 0
A120: =A119+(1/4) -> 32.5 | B120: 59 | C120: =IF(+'DOMESTIC DEMAND'!$G$29=B120,A120,) -> 0
A121: =A120+(1/4) -> 32.75 | B121: 59.5 | C121: =IF(+'DOMESTIC DEMAND'!$G$29=B121,A121,) -> 0
A122: 33 | B122: 60 | C122: =IF(+'DOMESTIC DEMAND'!$G$29=B122,A122,) -> 0
A123: =A122+(1/6) -> 33.16666667 | B123: 60.5 | C123: =IF(+'DOMESTIC DEMAND'!$G$29=B123,A123,) -> 0
A124: =A123+(1/6) -> 33.33333333 | B124: 61 | C124: =IF(+'DOMESTIC DEMAND'!$G$29=B124,A124,) -> 0
A125: =A124+(1/6) -> 33.5 | B125: 61.5 | C125: =IF(+'DOMESTIC DEMAND'!$G$29=B125,A125,) -> 0
A126: =A125+(1/6) -> 33.66666667 | B126: 62 | C126: =IF(+'DOMESTIC DEMAND'!$G$29=B126,A126,) -> 0
A127: =A126+(1/6) -> 33.83333333 | B127: 62.5 | C127: =IF(+'DOMESTIC DEMAND'!$G$29=B127,A127,) -> 0
A128: 34 | B128: 63 | C128: =IF(+'DOMESTIC DEMAND'!$G$29=B128,A128,) -> 0
A129: =A128+(1/6) -> 34.16666667 | B129: 63.5 | C129: =IF(+'DOMESTIC DEMAND'!$G$29=B129,A129,) -> 0
A130: =A129+(1/6) -> 34.33333333 | B130: 64 | C130: =IF(+'DOMESTIC DEMAND'!$G$29=B130,A130,) -> 0
A131: =A130+(1/6) -> 34.5 | B131: 64.5 | C131: =IF(+'DOMESTIC DEMAND'!$G$29=B131,A131,) -> 0
A132: =A131+(1/6) -> 34.66666667 | B132: 65 | C132: =IF(+'DOMESTIC DEMAND'!$G$29=B132,A132,) -> 0
A133: =A132+(1/6) -> 34.83333333 | B133: 65.5 | C133: =IF(+'DOMESTIC DEMAND'!$G$29=B133,A133,) -> 0
A134: 35 | B134: 66 | C134: =IF(+'DOMESTIC DEMAND'!$G$29=B134,A134,) -> 0
A135: =A134+(1/6) -> 35.16666667 | B135: 66.5 | C135: =IF(+'DOMESTIC DEMAND'!$G$29=B135,A135,) -> 0
A136: =A135+(1/6) -> 35.33333333 | B136: 67 | C136: =IF(+'DOMESTIC DEMAND'!$G$29=B136,A136,) -> 0
A137: =A136+(1/6) -> 35.5 | B137: 67.5 | C137: =IF(+'DOMESTIC DEMAND'!$G$29=B137,A137,) -> 0
A138: =A137+(1/6) -> 35.66666667 | B138: 68 | C138: =IF(+'DOMESTIC DEMAND'!$G$29=B138,A138,) -> 0
A139: =A138+(1/6) -> 35.83333333 | B139: 68.5 | C139: =IF(+'DOMESTIC DEMAND'!$G$29=B139,A139,) -> 0
A140: 36 | B140: 69 | C140: =IF(+'DOMESTIC DEMAND'!$G$29=B140,A140,) -> 0
A141: =A140+(1/10) -> 36.1 | B141: 69.5 | C141: =IF(+'DOMESTIC DEMAND'!$G$29=B141,A141,) -> 0
A142: 36.2 | B142: 70 | C142: =IF(+'DOMESTIC DEMAND'!$G$29=B142,A142,) -> 0
A143: 36.3 | B143: 70.5 | C143: =IF(+'DOMESTIC DEMAND'!$G$29=B143,A143,) -> 0
A144: 36.4 | B144: 71 | C144: =IF(+'DOMESTIC DEMAND'!$G$29=B144,A144,) -> 0
A145: 36.5 | B145: 71.5 | C145: =IF(+'DOMESTIC DEMAND'!$G$29=B145,A145,) -> 0
A146: 36.6 | B146: 72 | C146: =IF(+'DOMESTIC DEMAND'!$G$29=B146,A146,) -> 0
A147: 36.7 | B147: 72.5 | C147: =IF(+'DOMESTIC DEMAND'!$G$29=B147,A147,) -> 0
A148: 36.8 | B148: 73 | C148: =IF(+'DOMESTIC DEMAND'!$G$29=B148,A148,) -> 0
A149: 36.9 | B149: 73.5 | C149: =IF(+'DOMESTIC DEMAND'!$G$29=B149,A149,) -> 0
A150: 37 | B150: 74 | C150: =IF(+'DOMESTIC DEMAND'!$G$29=B150,A150,) -> 0
A151: =A150+(1/8) -> 37.125 | B151: 74.5 | C151: =IF(+'DOMESTIC DEMAND'!$G$29=B151,A151,) -> 0
A152: 37.25 | B152: 75 | C152: =IF(+'DOMESTIC DEMAND'!$G$29=B152,A152,) -> 0
A153: 37.375 | B153: 75.5 | C153: =IF(+'DOMESTIC DEMAND'!$G$29=B153,A153,) -> 0
A154: 37.5 | B154: 76 | C154: =IF(+'DOMESTIC DEMAND'!$G$29=B154,A154,) -> 0
A155: 37.625 | B155: 76.5 | C155: =IF(+'DOMESTIC DEMAND'!$G$29=B155,A155,) -> 0
A156: 37.75 | B156: 77 | C156: =IF(+'DOMESTIC DEMAND'!$G$29=B156,A156,) -> 0
A157: 37.875 | B157: 77.5 | C157: =IF(+'DOMESTIC DEMAND'!$G$29=B157,A157,) -> 0
A158: 38 | B158: 78 | C158: =IF(+'DOMESTIC DEMAND'!$G$29=B158,A158,) -> 0
A159: =A158+(1/10) -> 38.1 | B159: 78.5 | C159: =IF(+'DOMESTIC DEMAND'!$G$29=B159,A159,) -> 0
A160: 38.2 | B160: 79 | C160: =IF(+'DOMESTIC DEMAND'!$G$29=B160,A160,) -> 0
A161: 38.3 | B161: 79.5 | C161: =IF(+'DOMESTIC DEMAND'!$G$29=B161,A161,) -> 0
A162: 38.4 | B162: 80 | C162: =IF(+'DOMESTIC DEMAND'!$G$29=B162,A162,) -> 0
A163: 38.5 | B163: 80.5 | C163: =IF(+'DOMESTIC DEMAND'!$G$29=B163,A163,) -> 0
A164: 38.6 | B164: 81 | C164: =IF(+'DOMESTIC DEMAND'!$G$29=B164,A164,) -> 0
A165: 38.7 | B165: 81.5 | C165: =IF(+'DOMESTIC DEMAND'!$G$29=B165,A165,) -> 0
A166: 38.8 | B166: 82 | C166: =IF(+'DOMESTIC DEMAND'!$G$29=B166,A166,) -> 0
A167: 38.9 | B167: 82.5 | C167: =IF(+'DOMESTIC DEMAND'!$G$29=B167,A167,) -> 0
A168: 39 | B168: 83 | C168: =IF(+'DOMESTIC DEMAND'!$G$29=B168,A168,) -> 0
A169: =A168+(1/6) -> 39.16666667 | B169: 83.5 | C169: =IF(+'DOMESTIC DEMAND'!$G$29=B169,A169,) -> 0
A170: =A169+(1/6) -> 39.33333333 | B170: 84 | C170: =IF(+'DOMESTIC DEMAND'!$G$29=B170,A170,) -> 0
A171: =A170+(1/6) -> 39.5 | B171: 84.5 | C171: =IF(+'DOMESTIC DEMAND'!$G$29=B171,A171,) -> 0
A172: =A171+(1/6) -> 39.66666667 | B172: 85 | C172: =IF(+'DOMESTIC DEMAND'!$G$29=B172,A172,) -> 0
A173: =A172+(1/6) -> 39.83333333 | B173: 85.5 | C173: =IF(+'DOMESTIC DEMAND'!$G$29=B173,A173,) -> 0
A174: 40 | B174: 86 | C174: =IF(+'DOMESTIC DEMAND'!$G$29=B174,A174,) -> 0
A175: =A174+(1/8) -> 40.125 | B175: 86.5 | C175: =IF(+'DOMESTIC DEMAND'!$G$29=B175,A175,) -> 0
A176: 40.25 | B176: 87 | C176: =IF(+'DOMESTIC DEMAND'!$G$29=B176,A176,) -> 0
A177: 40.375 | B177: 87.5 | C177: =IF(+'DOMESTIC DEMAND'!$G$29=B177,A177,) -> 0
A178: 40.5 | B178: 88 | C178: =IF(+'DOMESTIC DEMAND'!$G$29=B178,A178,) -> 0
A179: 40.625 | B179: 88.5 | C179: =IF(+'DOMESTIC DEMAND'!$G$29=B179,A179,) -> 0
A180: 40.75 | B180: 89 | C180: =IF(+'DOMESTIC DEMAND'!$G$29=B180,A180,) -> 0
A181: 40.875 | B181: 89.5 | C181: =IF(+'DOMESTIC DEMAND'!$G$29=B181,A181,) -> 0
A182: 41 | B182: 90 | C182: =IF(+'DOMESTIC DEMAND'!$G$29=B182,A182,) -> 0
A183: =A182+(1/10) -> 41.1 | B183: 90.5 | C183: =IF(+'DOMESTIC DEMAND'!$G$29=B183,A183,) -> 0
A184: 41.2 | B184: 91 | C184: =IF(+'DOMESTIC DEMAND'!$G$29=B184,A184,) -> 0
A185: 41.3 | B185: 91.5 | C185: =IF(+'DOMESTIC DEMAND'!$G$29=B185,A185,) -> 0
A186: 41.4 | B186: 92 | C186: =IF(+'DOMESTIC DEMAND'!$G$29=B186,A186,) -> 0
A187: 41.5 | B187: 92.5 | C187: =IF(+'DOMESTIC DEMAND'!$G$29=B187,A187,) -> 0
A188: 41.6 | B188: 93 | C188: =IF(+'DOMESTIC DEMAND'!$G$29=B188,A188,) -> 0
A189: 41.7 | B189: 93.5 | C189: =IF(+'DOMESTIC DEMAND'!$G$29=B189,A189,) -> 0
A190: 41.8 | B190: 94 | C190: =IF(+'DOMESTIC DEMAND'!$G$29=B190,A190,) -> 0
A191: 41.9 | B191: 94.5 | C191: =IF(+'DOMESTIC DEMAND'!$G$29=B191,A191,) -> 0
A192: 42 | B192: 95 | C192: =IF(+'DOMESTIC DEMAND'!$G$29=B192,A192,) -> 0
A193: =A192+(1/8) -> 42.125 | B193: 95.5 | C193: =IF(+'DOMESTIC DEMAND'!$G$29=B193,A193,) -> 0
A194: 42.25 | B194: 96 | C194: =IF(+'DOMESTIC DEMAND'!$G$29=B194,A194,) -> 0
A195: 42.375 | B195: 96.5 | C195: =IF(+'DOMESTIC DEMAND'!$G$29=B195,A195,) -> 0
A196: 42.5 | B196: 97 | C196: =IF(+'DOMESTIC DEMAND'!$G$29=B196,A196,) -> 0
A197: 42.625 | B197: 97.5 | C197: =IF(+'DOMESTIC DEMAND'!$G$29=B197,A197,) -> 0
A198: 42.75 | B198: 98 | C198: =IF(+'DOMESTIC DEMAND'!$G$29=B198,A198,) -> 0
A199: 42.875 | B199: 98.5 | C199: =IF(+'DOMESTIC DEMAND'!$G$29=B199,A199,) -> 0
A200: 43 | B200: 99 | C200: =IF(+'DOMESTIC DEMAND'!$G$29=B200,A200,) -> 0
... 179 more rows
